bitfinex-derivatives/quotes_ETHF0:USTF0_20250410
["timestamp","ask_amount","ask_price","bid_price","bid_amount"]
[1744251025404,7.1324617,1639.9,1639.8,1.22012]
[1744251025596,7.1324617,1639.9,1639.8,8.71292]
[1744251027098,7.1324617,1639.9,1639.8,5.50512]
[1744251027597,9.1906617,1639.9,1639.8,5.50512]
[1744251027994,11.2503617,1639.9,1639.8,5.50512]
[1744251028207,11.2503617,1639.9,1639.8,1.22012]
[1744251028403,1.22012,1639.8,1639.7,1.22935898]
[1744251028594,5.35642,1639.8,1639.7,0.00916898]
[1744251029798,13.56422,1639.8,1639.7,0.00916898]
[1744251030002,1.22027,1639.6,1639.5,9.56445612]
[1744251030704,3.37952,1639.7,1639.6,1.22027]
[1744251031007,1.22027,1639.6,1639.5,9.56445612]
[1744251031200,3.37957,1639.6,1639.5,9.5736251]
[1744251031401,8.37957,1639.6,1639.5,10.7939651]
[1744251031903,7.1593,1639.6,1639.5,10.7939651]
[1744251032101,2.1593,1639.6,1639.5,10.7939651]
[1744251032298,3.37957,1639.6,1639.5,1.22950898]
[1744251033504,2.1593,1639.6,1639.5,1.22950898]
[1744251034902,2.1593,1639.6,1639.5,3.44890898]
[1744251035207,2.1593,1639.6,1639.5,6.65670898]
[1744251036806,2.1593,1639.6,1639.5,4.43730898]
[1744251037108,3.37957,1639.6,1639.5,0.00916898]
[1744251037302,3.37957,1639.6,1639.5,1.22950898]
[1744251037702,2.1593,1639.6,1639.5,1.22950898]
[1744251038504,3.37957,1639.6,1639.5,1.22950898]
[1744251038705,2.1593,1639.6,1639.5,1.22950898]
[1744251040215,2.1593,1639.6,1639.5,3.32780898]
[1744251040514,2.0766,1639.8,1639.7,1.22019]
[1744251040715,4.2415,1639.8,1639.7,1.22019]
[1744251041014,2.1649,1639.8,1639.7,1.22019]
[1744251041205,2.1649,1639.8,1639.7,3.31849]
[1744251041405,2.0582,1639.9,1639.8,1.22012]
[1744251041606,4.2231,1639.9,1639.8,6.52622]
[1744251041804,0.00916898,1640.0,1639.8,5.3061]
[1744251042009,0.00916898,1640.0,1639.9,7.60235]
[1744251042503,2.09836898,1640.0,1639.9,7.60235]
[1744251045219,0.00916898,1640.0,1639.9,7.60235]
[1744251045412,2.20536898,1640.0,1639.9,7.60235]
[1744251049918,2.20536898,1640.0,1639.9,1.22005]
[1744251052625,3.42533898,1640.0,1639.9,1.22005]
[1744251053230,2.20536898,1640.0,1639.9,1.22005]
[1744251054919,2.20536898,1640.0,1639.9,4.42785]
[1744251055433,0.00916898,1640.0,1639.9,6.49805]
[1744251061820,0.00916898,1640.0,1639.9,3.29025]
[1744251062027,2.14126898,1640.0,1639.9,1.22005]
[1744251065536,2.14126898,1640.0,1639.9,4.42785]
[1744251066238,2.14126898,1640.0,1639.9,6.40875]
[1744251070537,8.98e-06,1640.0,1639.9,6.40875]
[1744251070838,8.98e-06,1640.0,1639.9,12.02025]
[1744251071234,8.98e-06,1640.0,1639.9,52.82025]
[1744251072850,8.98e-06,1640.0,1639.9,53.43065]
[1744251073241,3.4831209,1640.3,1640.2,1.21982]
[1744251073444,1.6926809,1640.3,1640.2,8.70762]
[1744251073645,1.6926809,1640.3,1640.2,13.70762]
[1744251073942,1.6926809,1640.3,1640.2,16.38392]
[1744251074151,1.6926809,1640.3,1640.2,52.18392]
[1744251074347,1.6926809,1640.3,1640.2,51.57242]
[1744251074946,1.6926809,1640.3,1640.2,45.22762]
[1744251075148,3.7372809,1640.3,1640.2,42.01982]
[1744251075647,5.7248809,1640.3,1640.2,42.01982]
[1744251076351,10.7248809,1640.3,1640.2,42.01982]
[1744251076651,11.9446309,1640.3,1640.2,42.01982]
[1744251077053,11.9446309,1640.3,1640.2,1.21982]
[1744251077351,10.25195,1640.3,1640.2,1.21982]
[1744251078248,9.0322,1640.3,1640.2,1.21982]
[1744251078646,4.0322,1640.3,1640.2,1.21982]
[1744251079854,4.0322,1640.3,1640.2,6.51432]
[1744251080058,4.0322,1640.3,1640.2,4.42762]
[1744251081855,4.0322,1640.3,1640.2,8.70462]
[1744251082350,5.25195,1640.3,1640.2,8.70462]
[1744251082552,10.25195,1640.3,1640.2,8.70462]
[1744251082752,4.0322,1640.3,1640.2,8.70462]
[1744251084055,2.0446,1640.3,1640.2,8.70462]
[1744251084846,4.0929,1640.3,1640.2,10.70752]
[1744251085649,0.00916898,1640.4,1640.3,1.21975]
[1744251085857,0.00916898,1640.4,1640.3,3.36395]
[1744251088454,0.00916898,1640.4,1640.3,3.97335]
[1744251089255,8.98e-06,1640.4,1640.3,8.97335]
[1744251089760,8.98e-06,1640.4,1640.3,49.77335]
[1744251090254,8.98e-06,1640.4,1640.3,44.77335]
[1744251090458,7.1324617,1640.7,1640.6,1.21952]
[1744251090763,4.1887,1640.9,1640.8,1.21938]
[1744251091054,6.2935,1640.9,1640.8,4.42718]
[1744251091250,6.2935,1640.9,1640.8,45.22718]
[1744251091658,6.2935,1640.9,1640.8,47.35528]
[1744251093655,6.2935,1640.9,1640.8,45.22718]
[1744251093860,6.2935,1640.9,1640.8,49.50418]
[1744251097764,6.2935,1640.9,1640.8,45.22718]
[1744251100367,7.5128,1640.9,1640.8,42.01938]
[1744251100568,6.2935,1640.9,1640.8,42.01938]
[1744251101567,6.2935,1640.9,1640.8,45.22718]
[1744251103274,6.2935,1640.9,1640.8,47.37038]
[1744251103668,0.00916898,1641.0,1640.9,1.2193]
[1744251103873,0.00916898,1641.0,1640.9,7.6385]
[1744251104773,2.20046898,1641.0,1640.9,5.4953]
[1744251106275,4.28056898,1641.0,1640.9,5.4953]
[1744251106770,5.49979898,1641.0,1640.9,1.2193]
[1744251106976,1.2193,1640.9,1640.8,40.8]
[1744251107176,3.2994,1640.9,1640.8,42.01938]
[1744251107577,3.2994,1640.9,1640.8,1.21938]
[1744251107878,2.0801,1640.9,1640.8,1.21938]
[1744251108676,4.178,1640.9,1640.8,1.21938]
[1744251111673,4.178,1640.9,1640.8,4.42718]
[1744251112079,4.178,1640.9,1640.8,6.48908]
[1744251113088,2.20046898,1641.0,1640.9,1.2193]
[1744251113382,0.00916898,1641.0,1640.9,3.3067]
[1744251113885,0.00916898,1641.0,1640.9,44.1067]
[1744251115583,2.08206898,1641.0,1640.9,42.0193]
[1744251115978,2.08206898,1641.0,1640.9,44.034]
[1744251116383,2.08206898,1641.0,1640.9,42.0193]
[1744251117990,3.30129898,1641.0,1640.9,42.0193]
[1744251118392,2.08206898,1641.0,1640.9,42.0193]
[1744251119789,3.30129898,1641.0,1640.9,42.0193]
[1744251119989,2.08206898,1641.0,1640.9,42.0193]
[1744251121194,2.08206898,1641.0,1640.9,44.1026]
[1744251128097,2.08206898,1641.0,1640.9,3.3026]
[1744251128396,3.30129898,1641.0,1640.9,1.2193]
[1744251128789,2.08206898,1641.0,1640.9,1.2193]
[1744251130199,3.30129898,1641.0,1640.9,1.2193]
[1744251132102,2.08206898,1641.0,1640.9,1.2193]
[1744251132805,3.30129898,1641.0,1640.9,1.2193]
[1744251133097,1.2193,1640.9,1640.8,7.4808]
[1744251133305,5.5259,1640.9,1640.8,5.49238]
[1744251134407,5.5259,1640.9,1640.8,6.31237946]
[1744251135000,4.3066,1640.9,1640.8,9.52017946]
[1744251135202,5.84316898,1641.0,1640.9,1.2193]
[1744251135404,5.84316898,1641.0,1640.9,8.37099946]
[1744251135803,0.00916898,1641.0,1640.9,8.37099946]
[1744251136297,0.00916898,1641.0,1640.9,13.37099946]
[1744251136506,0.00916898,1641.0,1640.9,8.37099946]
[1744251137119,0.00916898,1641.0,1640.9,8.37040193]
[1744251138317,0.00916898,1641.0,1640.9,7.551]
[1744251138524,0.00916898,1641.0,1640.9,13.37021927]
[1744251138713,0.00916898,1641.0,1640.9,8.37021927]
[1744251138915,0.00916898,1641.0,1640.9,8.37028415]
[1744251140315,2.21176898,1641.0,1640.9,8.37028415]
[1744251140523,2.21176898,1641.0,1640.9,18.46442816]
[1744251140819,0.00916898,1641.0,1640.9,18.46442816]
[1744251142514,0.00916898,1641.0,1640.9,18.46421593]
[1744251143824,0.00916898,1641.0,1640.9,23.46421593]
[1744251144217,0.00916898,1641.0,1640.9,18.46421593]
[1744251144422,0.00916898,1641.0,1640.9,18.46433676]
[1744251144628,0.00916898,1641.0,1640.9,17.92705943]
[1744251145826,0.00916898,1641.0,1640.9,17.92711189]
[1744251146223,0.00916898,1641.0,1640.9,17.92714775]
[1744251146819,2.15076898,1641.0,1640.9,17.92714775]
[1744251147722,0.00916898,1641.0,1640.9,17.92714775]
[1744251148627,4.11566898,1641.0,1640.9,17.92714775]
[1744251148827,5.93666898,1641.0,1640.9,17.92714775]
[1744251149627,5.93666898,1641.0,1640.9,17.92754572]
[1744251151231,5.93666898,1641.0,1640.9,17.92752814]
[1744251153230,5.93666898,1641.0,1640.9,8.37066146]
[1744251155033,5.93666898,1641.0,1640.9,8.370692]
[1744251156834,0.00916898,1641.0,1640.9,8.370692]
[1744251157835,0.00916898,1641.0,1640.9,13.398092]
[1744251158245,0.00916898,1641.0,1640.9,8.398092]
[1744251158839,8.98e-06,1641.0,1640.9,13.398092]
[1744251159226,8.98e-06,1641.0,1640.9,8.398092]
[1744251161428,8.98e-06,1641.0,1640.9,8.398232]
[1744251161630,8.98e-06,1641.0,1640.9,32.8554207]
[1744251163038,8.98e-06,1641.0,1640.9,38.8514207]
[1744251164241,8.98e-06,1641.0,1640.9,38.8240207]
[1744251167848,8.98e-06,1641.0,1640.9,36.7613207]
[1744251168545,3.63310898,1641.0,1640.9,36.7613207]
[1744251168939,3.63310898,1641.0,1640.9,30.7653207]
[1744251169138,4.85233898,1641.0,1640.9,25.2770207]
[1744251169339,5.49050898,1641.0,1640.9,26.4963207]
[1744251169540,5.49050898,1641.0,1640.9,12.14394767]
[1744251171645,5.49050898,1641.0,1640.9,14.02964767]
[1744251173051,5.49050898,1641.0,1640.9,13.2085855]
[1744251173253,5.49050898,1641.0,1640.9,14.02941275]
[1744251174047,5.49050898,1641.0,1640.9,12.14371275]
[1744251175245,5.49050898,1641.0,1640.9,2.04012725]
[1744251176353,5.49050898,1641.0,1640.9,3.84432725]
[1744251177353,3.68680898,1641.0,1640.9,3.84432725]
[1744251179650,8.98e-06,1641.0,1640.9,3.84432725]
[1744251180253,8.98e-06,1641.0,1640.9,13.41267509]
[1744251181563,8.98e-06,1641.0,1640.9,24.40867509]
[1744251181851,5.834,1642.6,1642.4,1.21819]
[1744251182045,5.834,1642.6,1642.4,0.82082725]
[1744251182046,18.977015,1642.5,1642.4,0.82082725]
[1744251182450,18.977015,1642.5,1642.4,2.03901725]
[1744251183142,17.601215,1642.5,1642.4,2.03901725]
[1744251183847,17.601215,1642.5,1642.4,2.59802555]
[1744251184243,17.601215,1642.5,1642.4,7.64999379]
[1744251184452,15.832215,1642.5,1642.4,7.64999379]
[1744251184949,27.884325,1642.5,1642.4,2.16880379]
[1744251185155,28.435215,1642.5,1642.4,3.38699379]
[1744251185453,17.601215,1642.5,1642.4,3.38699379]
[1744251185752,18.95842418,1643.0,1642.6,3.04496]
[1744251185956,18.95842418,1643.0,1642.8,4.42568]
[1744251186254,18.95842418,1643.0,1642.9,1.37983555]
[1744251186451,20.17616418,1643.0,1642.9,1.37983555]
[1744251186659,25.17616418,1643.0,1642.9,1.60979549]
[1744251186851,23.95842418,1643.0,1642.9,2.1566702]
[1744251187051,20.89432418,1643.0,1642.9,2.1566702]
[1744251187356,22.11206418,1643.0,1642.9,1.60979549]
[1744251187545,36.15386418,1643.0,1642.9,1.60979549]
[1744251188545,26.72832418,1643.0,1642.9,6.03541549]
[1744251188756,26.72832418,1643.0,1642.9,2.82761549]
[1744251189160,7.7699,1643.0,1642.9,2.82761549]
[1744251189457,13.98764,1643.0,1642.9,0.78896824]
[1744251190450,13.98764,1643.0,1642.6,2.0788721]
[1744251190451,1.21799,1642.7,1642.6,2.0788721]
[1744251190651,1.21799,1642.7,1642.6,0.8608621]
[1744251190851,1.21804,1642.6,1642.5,1.21809]
[1744251191055,1.21804,1642.6,1642.5,0.86079754]
[1744251191354,1.21811,1642.5,1642.4,9.50240338]
[1744251191554,3.12281,1642.5,1642.4,10.36308472]
[1744251191750,1.21819,1642.4,1642.3,51.5297633]
[1744251191955,3.12289,1642.4,1642.3,50.3115433]
[1744251192458,1.9047,1642.4,1642.3,52.3905619]
[1744251192657,1.9047,1642.4,1642.3,55.5983619]
[1744251192961,5.834,1642.6,1642.5,1.21811]
[1744251193161,7.7387,1642.6,1642.5,2.0788686]
[1744251193753,7.7387,1642.6,1642.5,5.28609574]
[1744251193958,8.95674,1642.6,1642.5,0.86018574]
[1744251194162,13.95674,1642.6,1642.5,0.86018574]
[1744251194367,13.95674,1642.6,1642.3,53.5193433]
[1744251194368,1.21819,1642.4,1642.3,51.5297433]
[1744251194558,1.21819,1642.4,1642.3,52.39008347]
[1744251194963,1.21819,1642.4,1642.3,42.88768009]
[1744251195162,2.98729,1642.4,1642.3,42.88768009]
[1744251195663,2.98729,1642.4,1642.3,41.66948009]
[1744251195963,2.98729,1642.4,1642.3,40.80913992]
[1744251196565,7.98729,1642.4,1642.3,40.80913992]
[1744251196762,13.82129,1642.4,1642.3,0.00913992]
[1744251197066,13.82129,1642.4,1642.0,9.50240338]
[1744251197067,1.21841,1642.1,1642.0,9.50240338]
[1744251197265,1.21841,1642.1,1642.0,51.16323356]
[1744251197565,1.21841,1642.1,1642.0,52.38171356]
[1744251197765,3.09341,1642.1,1642.0,52.38171356]
[1744251198266,3.09341,1642.1,1642.0,11.58171356]
[1744251198459,3.09341,1642.1,1642.0,2.07931018]
[1744251198861,3.09341,1642.1,1642.0,2.07963339]
[1744251199067,3.09341,1642.1,1642.0,0.86115339]
[1744251199361,3.09341,1642.1,1642.0,2.07963339]
[1744251200276,3.09341,1642.1,1642.0,0.86115339]
[1744251201468,3.09341,1642.1,1642.0,2.07963339]
[1744251202359,3.09341,1642.1,1642.0,0.86115339]
[1744251202866,1.21848,1642.0,1641.9,0.00913992]
[1744251203069,4.80008,1642.0,1641.9,0.87200528]
[1744251203763,4.80008,1642.0,1641.9,1.65016502]
[1744251206565,4.80008,1642.0,1641.9,2.86872502]
[1744251206766,3.5816,1642.0,1641.9,6.07652502]
[1744251206968,1.8125,1642.0,1641.9,11.62454764]
[1744251207271,7.06150991,1642.2,1642.1,1.21841]
[1744251207466,7.06150991,1642.2,1642.1,1.41088798]
[1744251207671,7.06150991,1642.2,1642.1,2.18904772]
[1744251207864,7.06150991,1642.2,1642.1,1.32618236]
[1744251208070,7.06150991,1642.2,1642.1,3.40944349]
[1744251208263,8.93400991,1642.2,1642.1,3.40944349]
[1744251208465,8.93400991,1642.2,1642.1,8.52834349]
[1744251208767,8.93400991,1642.2,1642.1,3.40944349]
[1744251209771,8.93400991,1642.2,1642.1,2.19228281]
[1744251210165,8.93400991,1642.2,1642.1,3.41069281]
[1744251210367,8.93400991,1642.2,1642.1,2.19228281]
[1744251210565,8.93400991,1642.2,1642.1,3.41069281]
[1744251212175,7.71563991,1642.2,1642.1,3.41069281]
[1744251212383,5.84313991,1642.2,1642.1,3.41069281]
[1744251212679,5.84313991,1642.2,1642.1,5.26129281]
[1744251212872,0.00913991,1642.2,1642.1,8.46909281]
[1744251213276,0.00913991,1642.2,1642.1,8.46990564]
[1744251218578,0.00913991,1642.2,1642.1,49.26990564]
[1744251219279,1.22747991,1642.2,1642.1,44.21150564]
[1744251219481,4.79137991,1642.2,1642.1,2.19309564]
[1744251220080,4.79137991,1642.2,1642.1,3.41150564]
[1744251220287,4.79137991,1642.2,1642.1,2.19309564]
[1744251221085,4.79137991,1642.2,1642.1,3.41150564]
[1744251221482,4.79137991,1642.2,1642.1,2.19309564]
[1744251221682,4.79137991,1642.2,1642.1,3.41150564]
[1744251222197,3.57303991,1642.2,1642.1,3.41150564]
[1744251222485,3.57303991,1642.2,1642.1,6.61930564]
[1744251224193,4.79137991,1642.2,1642.1,6.61930564]
[1744251224492,4.79137991,1642.2,1642.1,3.41150564]
[1744251224889,4.79137991,1642.2,1642.1,2.19309564]
[1744251225584,4.79137991,1642.2,1642.1,3.41150564]
[1744251225987,4.79137991,1642.2,1642.1,3.41741742]
[1744251229193,3.57303991,1642.2,1642.1,3.41741742]
[1744251229591,0.00913991,1642.2,1642.1,5.20512471]
[1744251229793,0.00913991,1642.2,1642.1,11.24752471]
[1744251233294,0.00913991,1642.2,1642.1,25.84274175]
[1744251236099,0.00913991,1642.2,1642.1,22.26844175]
[1744251236303,2.98277991,1642.2,1642.1,22.26844175]
[1744251236501,3.68713991,1642.2,1642.1,36.62204495]
[1744251237404,0.00913991,1642.2,1642.1,38.52364495]
[1744251238000,0.00913991,1642.2,1642.1,36.62204495]
[1744251238400,1.76423991,1642.2,1642.1,36.62204495]
[1744251238703,6.19037991,1642.2,1642.1,31.1477542]
[1744251239100,6.19037991,1642.2,1642.1,32.3661642]
[1744251239306,2.98257991,1642.2,1642.1,32.3661642]
[1744251242405,8.81657991,1642.2,1642.1,32.3661642]
[1744251242607,8.81657991,1642.2,1642.1,12.96210507]
[1744251243108,8.81657991,1642.2,1642.1,11.74369507]
[1744251243302,8.81657991,1642.2,1642.1,12.96210507]
[1744251244910,7.59823991,1642.2,1642.1,12.96210507]
[1744251245710,8.81657991,1642.2,1642.1,12.96210507]
[1744251246208,7.59823991,1642.2,1642.1,12.96210507]
[1744251246400,8.59823991,1642.2,1642.1,14.77740507]
[1744251247098,9.81657991,1642.2,1642.1,17.77094716]
[1744251249610,8.59823991,1642.2,1642.1,17.77094716]
[1744251250102,6.84313991,1642.2,1642.1,19.59884716]
[1744251250307,6.84313991,1642.2,1642.1,34.2261014]
[1744251252212,6.84313991,1642.2,1642.1,33.35632712]
[1744251252413,6.84313991,1642.2,1642.1,34.21676132]
[1744251252709,8.06147991,1642.2,1642.1,34.21676132]
[1744251252911,8.63043991,1642.2,1642.1,19.86315812]
[1744251254013,2.79643991,1642.2,1642.1,19.86315812]
[1744251255012,4.01477991,1642.2,1642.1,19.86315812]
[1744251255214,2.79643991,1642.2,1642.1,19.86315812]
[1744251257615,1.00913991,1642.2,1642.1,19.86315812]
[1744251258015,1.00913991,1642.2,1642.1,20.56735812]
[1744251258513,1.00913991,1642.2,1642.1,19.86315812]
[1744251258714,2.92193991,1642.2,1642.1,19.86315812]
[1744251259117,1.00913991,1642.2,1642.1,34.16838059]
[1744251259415,1.00913991,1642.2,1642.1,34.16812806]
[1744251260112,1.00913991,1642.2,1642.1,39.16812806]
[1744251260507,9.91e-06,1642.2,1642.1,39.16812806]
[1744251260708,9.91e-06,1642.2,1642.1,39.16726187]
[1744251262617,9.91e-06,1642.2,1642.1,39.16652818]
[1744251263107,9.91e-06,1642.2,1642.1,39.16658856]
[1744251263615,9.91e-06,1642.2,1642.1,43.68563796]
[1744251265516,3.6303,1642.9,1642.7,1.21797]
[1744251265724,3.6303,1642.9,1642.8,2.62753211]
[1744251266020,2.62829599,1642.9,1642.8,2.62753211]
[1744251266218,2.62829599,1642.9,1642.8,3.40569185]
[1744251266421,4.41489599,1642.9,1642.8,3.40569185]
[1744251266915,5.63271599,1642.9,1642.8,2.18780185]
[1744251267334,5.63271599,1642.9,1642.8,11.70262604]
[1744251267524,5.63271599,1642.9,1642.8,12.92051604]
[1744251267815,4.41489599,1642.9,1642.8,12.92051604]
[1744251268425,4.41489599,1642.9,1642.8,12.91604196]
[1744251269223,5.834,1643.1,1643.0,1.21774]
[1744251269421,7.7492,1643.1,1643.0,2.62290803]
[1744251270017,7.7492,1643.1,1643.0,3.40106777]
[1744251270215,1.9152,1643.1,1643.0,3.40106777]
[1744251270614,3.6985,1643.1,1643.0,44.20106777]
[1744251271529,5.834,1643.3,1643.2,1.21759]
[1744251271727,3.506,1643.4,1643.3,1.21752]
[1744251271921,5.834,1643.6,1643.5,1.21737]
[1744251272118,9.34,1643.6,1643.5,2.62253803]
[1744251272318,9.34,1643.6,1643.5,6.60849777]
[1744251273724,9.34,1643.6,1643.5,6.60170182]
[1744251274114,9.34,1643.6,1643.5,6.60171336]
[1744251274627,15.5573,1643.6,1643.5,1.63090585]
[1744251274824,3.04365,1643.4,1643.0,42.01767]
[1744251275026,1.21763,1643.2,1643.1,0.54564913]
[1744251275223,1.21767,1643.1,1643.0,42.0177]
[1744251275422,3.14077,1643.1,1643.0,42.56342503]
[1744251275619,3.14077,1643.1,1643.0,42.0177]
[1744251275922,1.9231,1643.1,1643.0,42.56345716]
[1744251278730,7.643,1643.2,1643.1,1.21767]
[1744251278928,7.643,1643.2,1643.1,6.88712716]
[1744251279129,7.643,1643.2,1643.1,6.88705606]
[1744251279827,7.643,1643.2,1643.1,11.13705606]
[1744251280033,1.7611,1643.3,1643.2,1.21759]
[1744251280332,1.7611,1643.3,1643.2,1.76327606]
[1744251280834,1.7611,1643.3,1643.2,1.21759]
[1744251281030,1.7611,1643.3,1643.2,1.7632858]
[1744251281430,3.5467,1643.3,1643.2,1.7632858]
[1744251282829,4.76422,1643.3,1643.2,1.7632858]
[1744251283133,3.5467,1643.3,1643.2,1.7632858]
[1744251283826,3.5467,1643.3,1643.2,3.5779858]
[1744251284334,1.7856,1643.3,1643.2,3.5779858]
[1744251286236,1.7856,1643.3,1643.2,3.57774487]
[1744251286933,1.7856,1643.3,1643.2,5.18018581]
[1744251287942,5.834,1643.5,1643.4,1.21745]
[1744251288240,5.834,1643.5,1643.4,2.60277764]
[1744251288430,3.696,1643.6,1643.4,7.61134581]
[1744251288633,3.2078,1644.0,1643.7,3.0429]
[1744251288831,1.824,1644.1,1644.0,1.217]
[1744251289031,1.824,1644.1,1644.0,2.60232764]
[1744251289227,7.706,1644.2,1644.0,2.60232764]
[1744251289228,5.834,1644.3,1644.1,1.2169]
[1744251289437,12.12908,1644.3,1644.2,0.83859344]
[1744251289940,1.21693,1644.1,1644.0,0.76256817]
[1744251290135,1.21693,1644.1,1644.0,0.83914905]
[1744251290341,6.21693,1644.1,1644.0,0.83914905]
[1744251290639,6.21693,1644.1,1644.0,0.76204054]
[1744251290837,10.46293,1644.1,1644.0,1.60135203]
[1744251291240,13.67073,1644.1,1644.0,0.76204054]
[1744251291450,13.67073,1644.1,1644.0,1.60141952]
[1744251292135,13.67073,1644.1,1644.0,2.81841952]
[1744251293543,13.67073,1644.1,1644.0,1.60141952]
[1744251293744,13.67073,1644.1,1644.0,2.81841952]
[1744251294440,4.42473,1644.1,1644.0,2.81841952]
[1744251294944,10.25873,1644.1,1644.0,1.60141952]
[1744251295245,10.25873,1644.1,1644.0,1.6018697]
[1744251295741,7.05093,1644.1,1644.0,3.36440557]
[1744251296345,5.834,1644.1,1644.0,3.36440557]
[1744251296544,5.834,1644.1,1644.0,5.10920557]
[1744251296746,5.834,1644.1,1644.0,8.31700557]
[1744251296945,1.8705,1644.3,1644.2,1.21685]
[1744251297140,3.2078,1644.8,1644.2,8.83804457]
[1744251297344,5.834,1645.0,1644.8,1.21641]
[1744251297533,5.834,1645.0,1644.9,0.8397087]
[1744251297534,3.13156,1645.0,1644.9,0.8397087]
[1744251297848,1.21641,1644.8,1644.7,0.00913992]
[1744251298041,1.21641,1644.8,1644.7,0.8478237]
[1744251298247,1.21641,1644.8,1644.7,0.00913992]
[1744251298448,1.21641,1644.8,1644.7,0.77057634]
[1744251300047,12.05041,1644.8,1644.7,0.77057634]
[1744251301047,12.05041,1644.8,1644.7,0.00913992]
[1744251302247,12.05041,1644.8,1644.4,40.8]
[1744251302248,3.04164,1644.5,1644.1,5.46189]
[1744251302546,3.04164,1644.5,1644.2,1.38161102]
[1744251302547,1.21678,1644.3,1644.2,1.38161102]
[1744251302850,1.21678,1644.3,1644.2,44.15908534]
[1744251303242,1.21678,1644.3,1644.2,3.35904534]
[1744251303549,1.21678,1644.3,1644.2,2.14223534]
[1744251303744,1.21678,1644.3,1644.2,1.5982306]
[1744251303745,7.05078,1644.3,1644.2,1.5982306]
[1744251303954,10.25858,1644.3,1644.2,1.5982306]
[1744251304144,10.25858,1644.3,1644.2,0.76062432]
[1744251304649,10.25858,1644.3,1644.2,1.59849393]
[1744251307048,10.25858,1644.3,1644.2,0.76062432]
[1744251307548,1.21685,1644.2,1644.1,0.00913992]
[1744251307748,7.05085,1644.2,1644.1,0.00913992]
[1744251308543,1.21722,1643.7,1643.6,9.45416891]
[1744251308851,1.21722,1643.7,1643.6,1.60267453]
[1744251309055,4.42502,1643.7,1643.6,1.60267453]
[1744251310148,10.25902,1643.7,1643.6,0.76270631]
[1744251310351,19.50302,1643.7,1643.6,6.31e-06]
[1744251310548,1.2173,1643.6,1643.5,9.46330883]
[1744251310746,1.21767,1643.1,1643.0,18.82427187]
[1744251310946,11.29567,1643.1,1643.0,19.66513849]
[1744251311253,11.29567,1643.1,1643.0,19.66439766]
[1744251311754,14.50347,1643.1,1643.0,18.82427187]
[1744251313048,19.50347,1643.1,1643.0,18.82427187]
[1744251313451,19.50347,1643.1,1642.9,0.00913992]
[1744251313452,18.2858,1643.1,1642.9,0.00913992]
[1744251313653,12.4518,1643.1,1642.9,0.00913992]
[1744251314244,7.4518,1643.1,1642.9,0.00913992]
[1744251314450,7.4528,1643.1,1642.9,0.00913992]
[1744251314650,7.4528,1643.1,1642.9,1.73313992]
[1744251314841,7.4528,1643.1,1642.9,0.00913992]
[1744251315345,7.4528,1643.1,1642.9,1.73313992]
[1744251316150,7.4528,1643.1,1642.9,2.95094992]
[1744251316558,8.67054,1643.1,1642.9,1.73313992]
[1744251316753,7.4528,1643.1,1642.9,2.95089992]
[1744251318553,7.4528,1643.1,1642.9,1.73313992]
[1744251318952,7.4528,1643.1,1642.9,2.95094992]
[1744251320751,4.245,1643.1,1642.9,0.00913992]
[1744251320962,7.4528,1643.1,1642.9,0.00913992]
[1744251321151,7.4528,1643.1,1642.9,1.22692992]
[1744251321356,4.245,1643.1,1643.0,3.10904]
[1744251321650,7.06079992,1643.2,1643.1,1.21767]
[1744251321854,1.21767,1643.1,1643.0,6.31678]
[1744251322058,1.21767,1643.1,1643.0,6.31684]
[1744251322449,5.84313992,1643.2,1643.0,10.0991]
[1744251322646,1.21767,1643.1,1643.0,6.31682]
[1744251322857,1.21767,1643.1,1643.0,1.8913]
[1744251323159,1.21767,1643.1,1643.0,3.10904]
[1744251323663,1.21767,1643.1,1643.0,1.8913]
[1744251323860,8.88728992,1643.2,1642.9,0.00913992]
[1744251324164,1.7209,1643.1,1642.9,1.80413992]
[1744251324462,5.9669,1643.1,1642.9,1.80413992]
[1744251324760,5.9669,1643.1,1642.9,0.00913992]
[1744251325460,10.9669,1643.1,1642.9,0.00913992]
[1744251327062,16.8009,1643.1,1642.9,0.00913992]
[1744251327562,11.8009,1643.1,1642.9,0.00913992]
[1744251328256,11.8009,1643.1,1642.9,1.80293992]
[1744251328455,16.8009,1643.1,1642.9,0.00913992]
[1744251331061,7.5549,1643.1,1643.0,3.2078]
[1744251331365,11.8009,1643.1,1642.9,0.00913992]
[1744251331566,11.8009,1643.1,1642.9,1.81313992]
[1744251331964,11.8009,1643.1,1642.9,0.00913992]
[1744251333866,16.8009,1643.1,1642.9,0.00913992]
[1744251335768,11.8009,1643.1,1642.9,3.21693992]
[1744251336661,14.84508,1643.1,1642.9,3.21693992]
[1744251337456,13.01857,1643.1,1643.0,1.9437]
[1744251343770,13.01857,1643.1,1643.0,5.1515]
[1744251345280,13.01857,1643.1,1643.0,6.9818]
[1744251346774,4.246,1643.1,1643.0,8.19954]
[1744251346969,0.00913992,1643.2,1643.1,1.21767]
[1744251347166,4.247,1643.4,1643.3,1.21752]
[1744251347367,5.46445,1643.4,1643.3,5.81518675]
[1744251347767,5.46445,1643.4,1643.3,6.57262906]
[1744251347966,5.46445,1643.4,1643.3,4.80815869]
[1744251348271,5.46445,1643.4,1643.3,4.80718159]
[1744251349077,5.46445,1643.4,1643.3,3.96524231]
[1744251349381,5.46445,1643.4,1643.3,3.2078]
[1744251351579,5.46445,1643.4,1643.3,0.75705801]
[1744251351980,5.46445,1643.4,1643.1,5.0257]
[1744251351981,1.21759,1643.2,1643.1,5.0257]
[1744251352284,1.21759,1643.2,1643.1,4.04981475]
[1744251352477,1.21759,1643.2,1643.1,4.80693797]
[1744251353683,1.21759,1643.2,1643.1,4.80704867]
[1744251353883,4.247,1643.4,1643.1,4.80704867]
[1744251354091,5.46445,1643.4,1643.3,3.2078]
[1744251354278,5.46445,1643.4,1643.3,4.04992545]
[1744251354594,5.46445,1643.4,1643.3,4.80704867]
[1744251356299,5.46445,1643.4,1643.3,3.96492322]
[1744251357002,6.53855,1643.4,1643.3,3.96492322]
[1744251357294,6.53855,1643.4,1643.3,0.75712322]
[1744251357501,6.53855,1643.4,1643.3,3.96492322]
[1744251358100,6.53855,1643.4,1643.3,3.2078]
[1744251359300,1.21767,1643.1,1643.0,7.0123]
[1744251359501,5.46267,1643.1,1643.0,9.1581067]
[1744251359898,5.46267,1643.1,1643.0,10.3758467]